account_party,address,code,date,document_number,expense_code_name,expense_code_name_short,id,party_cell,party_cell_code,party_cell_geoobject,purpose,source_bank_account_number,source_bank_account_type,sum,target_legal_personality,target_legal_personality_code,target_type
ОПЗЖ,"03087, м.Київ, ВУЛИЦЯ ЄРЕВАНСЬКА, будинок 1",70,2020-03-31,TR.8981501.666997.2667,Банківські послуги,Інші витрати,238397,Житомирська обласна організація Опозиційна платформа - За життя,42417904,Житомирська область,Абонплата за розрахункове обслуговування,UA643204780000026008924855733,current,60.00,"АБ ""Укргазбанк""",23697280,юридична особа
ОПЗЖ,"04053, м.Київ, ВУЛИЦЯ БУЛЬВАРНО-КУДРЯВСЬКА, будинок 6",70,2020-03-31,252470,Банківські послуги,Інші витрати,238351,Харківська обласна організація Опозиційна платформа - За життя,33900035,Харківська область,"Оплата за переказ кошітв за ел. Банк. Док. Надіслано СДО ""PAY CIB"" зг. Дог.№31935/РКО від 21.06.2019р.",UA493225400000026003101031935,current,100.00,"АТ ""Комерційний індустріальний банк""",21580639,юридична особа
ОПЗЖ,"04053, м.Київ, ВУЛИЦЯ БУЛЬВАРНО-КУДРЯВСЬКА, будинок 6",70,2020-03-31,251417,Банківські послуги,Інші витрати,238350,Харківська обласна організація Опозиційна платформа - За життя,33900035,Харківська область,Комісія за рохрахункове обслуговування поточного рахунку за період 01.03.20-31.03.20 зг. Дог.№31935/РКО від 21.06.2019р. Без ПДВ,UA493225400000026003101031935,current,100.00,"АТ ""Комерційний індустріальний банк""",21580639,юридична особа
ОПЗЖ,"04070, м Київ, вулиця Андріївська, буд. 4",70,2020-03-31,TR.29622094.552924.359,Банківські послуги,Інші витрати,238333,Дніпропетровська обласна організація Опозиційна платформа - За життя,41549539,Дніпропетровська область,"Договірне списання комісії по тариф. пакету за період з 01.03.20 по 31.03.20, дог. № 272636160 від 09.07.2018 згідно тарифів ПУМБ",UA903348510000000002600948745,current,170.00,"ПАТ ""ПУМБ""",14282829,юридична особа
ОПЗЖ,"04053, м.Київ, ВУЛИЦЯ КУДРЯВСЬКИЙ УЗВІЗ, будинок 2",70,2020-03-31,127264,Банківські послуги,Інші витрати,238327,Центральний офіс,21709375,Україна,Оплата за обслуговування в тарифному пакеті за період 01.03.20-31.03.20 зг. дог. № 26004001085864 від 08.08.2019 і тарифами банку.Без ПДВ.,UA763390500000026004001085864,state,500.00,"Кременчуцька філія ПАТ ""Кристалбанк""",39544699,юридична особа
ОПЗЖ,"04074, м.Київ, ВУЛИЦЯ ЛУГОВА, БУДИНОК №2 , (ЛІТЕРА А)",79,2020-03-31,6,"Оренда будинків і приміщень та експлуатаційні витрати (прибирання, страхування орендованих будинків, охорона, сигналізація, ремонт, вивіз сміття, тощо)",Оренда нерухомості,238326,Центральний офіс,21709375,Україна,Оплата за оренду приміщення зг.дог.№183 від 01.01.2020 р. в т. ч. ПДВ 20% 154559.68 грн.,UA763390500000026004001085864,state,927358.08,"ТОВ ""УКРАЇНСЬКИЙ ПРОМИСЛОВО-ФІНАНСОВИЙ КОНЦЕРН ""СЛАВУТИЧ""",16464546,юридична особа
ОПЗЖ,"03115, м. Київ, вул. Генерала Вітрука, буд. 8-А",61,2020-03-30,16,Військовий збір,Податкові платежі,238317,Центральний офіс,21709375,Україна,* ; 11010100 ; 21709375 ; військовий збір із зарплати за березень 2020 р Без ПДВ.,UA603808380000026003700467179,current,229.80,УДКСУ у Святошинському районі ГУ ДКСУ у м. Києві,37962074,юридична особа
ОПЗЖ,"03150, м. Київ, Предславинська, 28 Оф. 1003",76,2020-03-30,14,Послуги зв’язку,Послуги зв’язку,238316,Центральний офіс,21709375,Україна,"Оплата за необмежений доступ до мережі Інтернет за березень 2020 р згідно рахунку № 640 від 01.03.20 р. В т.ч. ПДВ – 16,67 грн..",UA603808380000026003700467179,current,100.00,"ТОВ ""Дрім лайн холдінг""",34981026,юридична особа
ОПЗЖ,"03115, м. Київ, вул. Генерала Вітрука, буд. 8-А",63,2020-03-30,18,Податок на доходи,Податкові платежі,238315,Центральний офіс,21709375,Україна,* ; 11010100 ; 21709375 ; ; ; Податок на доходи фізичних осіб із зарплати за березень 2020 р Без ПДВ.,UA603808380000026003700467179,current,2757.52,УДКСУ у Святошинському районі ГУ ДКСУ у м. Києві,37962074,юридична особа
ОПЗЖ,"04655, м.Київ, ВУЛИЦЯ ШОЛУДЕНКА, будинок 33/19",62,2020-03-30,17,Сплата ЄСВ,Податкові платежі,238314,Центральний офіс,21709375,Україна,* ; 101 ; 21709375 ; ; ; 22% ЄСВ на зарплати за березень 2020 р Без ПДВ.,UA603808380000026003700467179,current,3370.29,ГУ ДФС у м. Києві,43141267,юридична особа
ОПЗЖ,"01133 М. Київ Вул. Мечнікова, буд.14/1",82,2020-03-30,15,"Гонорари, в тому числі за надані консультаційні послуги","Гонорари, в тому числі за надані консультаційні послуги",238313,Центральний офіс,21709375,Україна,Абонентська плата за лютий-березень 2020 р. згідно з Договором №01/05-2017 від 01.05.2017р. Без ПДВ.,UA603808380000026003700467179,current,4000.00,"ТОВ ""Адвокатська компанія ""Золота середина""",37884206,юридична особа
ОПЗЖ,"03150, м. Київ, Предславинська, 28 Оф. 1003",78,2020-03-30,13,Оренда обладнання та технічних засобів,Оренда обладнання та технічних засобів,238312,Центральний офіс,21709375,Україна,"Абонентська плата за оренду сервера за березень 2020р згідно рахунку № 641 від 01.03.20р. В т.ч. ПДВ – 67,33 грн.",UA603808380000026003700467179,current,404.00,"ТОВ ""Дрім лайн холдінг""",34981026,юридична особа
ОПЗЖ,м. Київ,84,2020-03-30,21,"Заробітна плата, премії","Заробітна плата, лікарняні, вагітності, відрядження, компенсації",238285,Центральний офіс,21709375,Україна,Поповнення карткового Рах № 5168742726929528 (зарплата лютий 2020р) Без ПДВ.,UA603808380000026003700467179,current,4025.00,Смілянська Галина Федорівна,,фізична особа
ОПЗЖ,м. Курахове,84,2020-03-30,20,"Заробітна плата, премії","Заробітна плата, лікарняні, вагітності, відрядження, компенсації",238284,Центральний офіс,21709375,Україна,Поповнення картковогоРах № 4149439007900909 (зарплата за лютий 2020 р) Без ПДВ.,UA603808380000026003700467179,current,4153.59,Кухарський Олександр Олександрович,,фізична особа
ОПЗЖ,м. Київ,84,2020-03-30,19,"Заробітна плата, премії","Заробітна плата, лікарняні, вагітності, відрядження, компенсації",238283,Центральний офіс,21709375,Україна,Поповнення картковогоРах № 5168 7422 2059 1949 (зарплата заберезень 2020р) Без ПДВ.,UA603808380000026003700467179,current,4153.59,Шило Розалі Георгіївна,,фізична особа
ОПЗЖ,"40020, Сумська обл., місто Суми, ПРОСПЕКТ КУРСЬКИЙ, будинок 6/1",79,2020-03-27,4,"Оренда будинків і приміщень та експлуатаційні витрати (прибирання, страхування орендованих будинків, охорона, сигналізація, ремонт, вивіз сміття, тощо)",Оренда нерухомості,238368,Сумська обласна організація Опозиційна платформа - За життя,40899474,Сумська область,Плата за оренду нежитлового приміщення,UA453375460000026006055026947,current,1046.00,ТОВ „СУМБУДТРАНС”,36334239,юридична особа
ОПЗЖ,"04053, м.Київ, ВУЛИЦЯ БУЛЬВАРНО-КУДРЯВСЬКА, будинок 6",70,2020-03-27,201397,Банківські послуги,Інші витрати,238349,Харківська обласна організація Опозиційна платформа - За життя,33900035,Харківська область,Комісія за переказ коштів за платіжним друченням по системі КБ заперіод 27.03.20-27.03.20 зг. Дог. №31935/РКО від 21.06.2019р. Без ПДВ,UA493225400000026003101031935,current,3.00,"АТ ""Комерційний індустріальний банк""",21580639,юридична особа
ОПЗЖ,м. Харків,79,2020-03-27,20,"Оренда будинків і приміщень та експлуатаційні витрати (прибирання, страхування орендованих будинків, охорона, сигналізація, ремонт, вивіз сміття, тощо)",Оренда нерухомості,238339,Харківська обласна організація Опозиційна платформа - За життя,33900035,Харківська область,Сплата за комунальні послуги згідно договору бн від 01.01.2020р. Та Акту №4 від 16.03.2020 р. за лютий 2020р. Без ПДВ,UA493225400000026003101031935,current,9341.90,Дорожко Ірина Миколаївна,,фізична особа
ОПЗЖ,"04108, м.Київ",57,2020-03-27,5,Виготовлення брендованої продукції,"Виготовлення брендованої продукції (футболки, кепки, парасольки)",238319,Центральний офіс,21709375,Україна,Оплата за виготовлення брендованої продукції зг.дог.№2503 від 25.03.2020р. та рах.№118 від 25.03.2020 р. Без ПДВ.,UA763390500000026004001085864,state,475000.00,Юшкалюк Андрій Валерійович,,фізична особа
ОПЗЖ,"04070, м.Київ, ВУЛИЦЯ БОРИСОГЛІБСЬКА, будинок 5, ЛІТЕРА ""А""",70,2020-03-26,9623588/20,Банківські послуги,Інші витрати,238363,Луганська обласна організація Опозиційна платформа - За життя,41366346,Луганська область,Комісія за разрахункове обслуговування,UA293006470000026001011247700,current,150.00,"АБ ""Кліринговий дім""",21665382,юридична особа
ОПЗЖ,"04070, м.Київ, ВУЛИЦЯ БОРИСОГЛІБСЬКА, будинок 5, ЛІТЕРА ""А""",70,2020-03-25,8936799/20,Банківські послуги,Інші витрати,238362,Луганська обласна організація Опозиційна платформа - За життя,41366346,Луганська область,Комісія за разрахункове обслуговування,UA293006470000026001011247700,current,70.00,"АБ ""Кліринговий дім""",21665382,юридична особа
ОПЗЖ,"10002, Житомирська обл., м. Житомир, майд. Смолянський , буд. 3",79,2020-03-23,1,"Оренда будинків і приміщень та експлуатаційні витрати (прибирання, страхування орендованих будинків, охорона, сигналізація, ремонт, вивіз сміття, тощо)",Оренда нерухомості,238396,Житомирська обласна організація Опозиційна платформа - За життя,42417904,Житомирська область,"Оплата за оренду приміщення за січень-березень 2020р., зг.Дог.б/н від 01.10.2018р. Р., рахунку № 9 від 23.03.2020р., в т.ч. ПДВ500,00 грн.",UA643204780000026008924855733,current,3000.00,"ПП ""Подік""",32066937,юридична особа
ОПЗЖ,"03087, м.Київ, ВУЛИЦЯ ЄРЕВАНСЬКА, будинок 1",70,2020-03-23,TR.8981501.549023874,Банківські послуги,Інші витрати,238395,Житомирська обласна організація Опозиційна платформа - За життя,42417904,Житомирська область,Плата за розрахункове обслуговування,UA643204780000026008924855733,current,10.00,"АБ ""Укргазбанк""",23697280,юридична особа
ОПЗЖ,"03115, м. Київ, вул. Генерала Вітрука, буд. 8-А",63,2020-03-18,9,Податок на доходи,Податкові платежі,238311,Центральний офіс,21709375,Україна,* ; 11010100 ; 21709375 ; ; ; Податок на доходи фізичних осіб із зарплати за лютий 2020 р Без ПДВ.,UA603808380000026003700467179,current,2757.52,УДКСУ у Святошинському районі ГУ ДКСУ у м. Києві,37962074,юридична особа
ОПЗЖ,"03150, м. Київ, Предславинська, 28 Оф. 1003",76,2020-03-18,2,Послуги зв’язку,Послуги зв’язку,238310,Центральний офіс,21709375,Україна,"Оплата за необмежений доступ до мережі Інтернет за лютий 2020 р згідно рахунку №412 від 01.02.20 р. В т.ч. ПДВ – 16,67 грн..",UA603808380000026003700467179,current,100.00,"ТОВ ""Дрім лайн холдінг""",34981026,юридична особа
ОПЗЖ,"03115, м. Київ, вул. Генерала Вітрука, буд. 8-А",61,2020-03-18,10,Військовий збір,Податкові платежі,238309,Центральний офіс,21709375,Україна,* ; 11010100 ; 21709375 ; військовий збір із зарплати за лютий 2020 р Без ПДВ.,UA603808380000026003700467179,current,229.80,УДКСУ у Святошинському районі ГУ ДКСУ у м. Києві,37962074,юридична особа
ОПЗЖ,"04655, м.Київ, ВУЛИЦЯ ШОЛУДЕНКА, будинок 33/19",62,2020-03-18,8,Сплата ЄСВ,Податкові платежі,238308,Центральний офіс,21709375,Україна,* ; 101 ; 21709375 ; ; ; 22% ЄСВ на зарплати за лютий 2020 р Без ПДВ.,UA603808380000026003700467179,current,3370.29,ГУ ДФС у м. Києві,43141267,юридична особа
ОПЗЖ,04080 м.Київ вул Кирилівська 102,72,2020-03-18,12,"Придбання, ремонт офісної техніки та програмного забезпечення (Бухгалтерські програми, Ліга.закон, домени)",Придбання офісної техніки та програмного забезпечення,238307,Центральний офіс,21709375,Україна,"Постачання примірника та пакетів оновлень комп'ютерної програми ""М.Е.Дос"" згідно рахунку №МЕД-21709375 від 28.02.2020р. Без ПДВ.",UA603808380000026003700467179,current,2650.00,"ТОВ ""Зелена бухгалтерія""",38777973,юридична особа
ОПЗЖ,"01601 М. Київ Бул-р Т. Шевченко, буд.18",76,2020-03-18,4,Послуги зв’язку,Послуги зв’язку,238306,Центральний офіс,21709375,Україна,"За послуги міжміські та міжнародні розмови за лютий 2020 р згідно О/Р 8200004425510701 У т.р. ПДВ 85,66 грн.",UA603808380000026003700467179,current,513.95,"ПАТ ""Укртелеком""",21560766,юридична особа
ОПЗЖ,"03150, м. Київ, Предславинська, 28 Оф. 1003",78,2020-03-18,1,Оренда обладнання та технічних засобів,Оренда обладнання та технічних засобів,238305,Центральний офіс,21709375,Україна,"Абонентська плата за оренду сервера за лютий 2020р згідно рахунку № 413 від 01.02.20р. В т.ч. ПДВ – 67,33 грн.",UA603808380000026003700467179,current,404.00,"ТОВ ""Дрім лайн холдінг""",34981026,юридична особа
ОПЗЖ,01133 м.Київ вул.Мечникова 14/1,79,2020-03-18,11,"Оренда будинків і приміщень та експлуатаційні витрати (прибирання, страхування орендованих будинків, охорона, сигналізація, ремонт, вивіз сміття, тощо)",Оренда нерухомості,238304,Центральний офіс,21709375,Україна,"Оренда приміщення за лютий 2020р згідно рахунку №91 від 28.01.20р За березень 2020р. згідно рахунку № 181 від 28.02.20г в т.ч. ПДВ – 266,66 грн.",UA603808380000026003700467179,current,1600.00,"Асоціація ""Українсько-Ізраїльська торгова палата""",23153841,юридична особа
ОПЗЖ,м. Київ,84,2020-03-18,7,"Заробітна плата, премії","Заробітна плата, лікарняні, вагітності, відрядження, компенсації",238282,Центральний офіс,21709375,Україна,Поповнення карткового Рах № 5168742726929528 (зарплата лютий 2020р) Без ПДВ.,UA603808380000026003700467179,current,4025.00,Смілянська Галина Федорівна,,фізична особа
ОПЗЖ,м. Курахове,84,2020-03-18,6,"Заробітна плата, премії","Заробітна плата, лікарняні, вагітності, відрядження, компенсації",238281,Центральний офіс,21709375,Україна,Поповнення картковогоРах № 4149439007900909 (зарплата за лютий 2020 р) Без ПДВ.,UA603808380000026003700467179,current,4153.59,Кухарський Олександр Олександрович,,фізична особа
ОПЗЖ,м. Київ,84,2020-03-18,5,"Заробітна плата, премії","Заробітна плата, лікарняні, вагітності, відрядження, компенсації",238280,Центральний офіс,21709375,Україна,Поповнення картковогоРах № 5168 7422 2059 1949 (зарплата за лютий 2020р) Без ПДВ.,UA603808380000026003700467179,current,4153.59,Шило Розалі Георгіївна,,фізична особа
ОПЗЖ,"40020, Сумська обл., місто Суми, ПРОСПЕКТ КУРСЬКИЙ, будинок 6/1",79,2020-03-17,3,"Оренда будинків і приміщень та експлуатаційні витрати (прибирання, страхування орендованих будинків, охорона, сигналізація, ремонт, вивіз сміття, тощо)",Оренда нерухомості,238367,Сумська обласна організація Опозиційна платформа - За життя,40899474,Сумська область,Плата за оренду нежитлового приміщення,UA453375460000026006055026947,current,2092.00,ТОВ „СУМБУДТРАНС”,36334239,юридична особа
ОПЗЖ,"69107, Запорізька обл., місто Запоріжжя, ПРОСПЕКТ СОБОРНИЙ, будинок 166",62,2020-03-16,59,Сплата ЄСВ,Податкові платежі,238394,Запорізька обласна організація Опозиційна платформа - За життя,39400010,Запорізька область,*;101;39968366;Нарах.ЕСВ 22% на зар.плату за 1-шу половину березня 2020 року. Перерах. Повн. Стр. 16.03.2020 р.; ; ; без ПДВ.,UA293139570000026008300696560,current,471.43,ГУ ДПС у Запорізькій області,43143945,юридична особа
ОПЗЖ,"69000, Запорізька обл., м.Запоріжжя, вул. Олександрівська, 7",63,2020-03-16,58,Податок на доходи,Податкові платежі,238393,Запорізька обласна організація Опозиційна платформа - За життя,39400010,Запорізька область,"*;101;39400010;11010100; Податок з доходу фіз.осіб, утрим. із зар.плати за 1-шу половину березня 2020 року. Перерах.повн. Стр. 16.03.2020 р.; ; ;без ПДВ.",UA293139570000026008300696560,current,385.71,УДКСУ в Олександрівському районі м. Запоріжжя,38025440,юридична особа
ОПЗЖ,"69000, Запорізька обл., м.Запоріжжя, вул. Олександрівська, 7",61,2020-03-16,57,Військовий збір,Податкові платежі,238392,Запорізька обласна організація Опозиційна платформа - За життя,39400010,Запорізька область,"*;101;39400010;11011000; Військовий збір 1,5%, утрим. із зар.плати за 1-шу половину березня 2020 року. Перерах.повн. стр. 16.03.2020 р.; ; ;без ПДВ.",UA293139570000026008300696560,current,32.14,УДКСУ в Олександрівському районі м. Запоріжжя,38025440,юридична особа
ОПЗЖ,м.Запоріжжя,84,2020-03-16,60,"Заробітна плата, премії","Заробітна плата, лікарняні, вагітності, відрядження, компенсації",238373,Запорізька обласна організація Опозиційна платформа - За життя,39400010,Запорізька область,Заробітна плата за 1-шу половину березня 2020 року. Без ПДВ.,UA293139570000026008300696560,current,1725.01,Матвієнко Павло Дмитрович,,фізична особа
ОПЗЖ,"69095, Запорізька обл., м.Запоріжжя, пр.Соборний, 111",79,2020-03-10,56,"Оренда будинків і приміщень та експлуатаційні витрати (прибирання, страхування орендованих будинків, охорона, сигналізація, ремонт, вивіз сміття, тощо)",Оренда нерухомості,238391,Запорізька обласна організація Опозиційна платформа - За життя,39400010,Запорізька область,"Оплата за оренду нежитлового приміщення у лютому 2020 року згідно Договору № 26 від 01.06.2019 року. В т.ч ПДВ 574,17 грн.",UA293139570000026008300696560,current,3445.00,"Спільне українсько-німецьке підприємство ""Саксонія ГМБХ""",19364710,юридична особа
ОПЗЖ,"01015, м. Київ, вул. Лаврська, 16",68,2020-03-05,3,Соцдослідження,"Гонорари, в тому числі за надані консультаційні послуги",238355,Київська міська організація Опозиційна платформа - За життя,40398712,Київ,"Плата за проведення дослідження ""Соц. – політ.орієнтації жителів Києва"" згідно дог. б/н від 28.01.2020 року, без ПДВ.",UA533390500000026007001094421,current,250.00,"Громадська організація ""Український центр економічних і політичних досліджень імені Олександра Разумкова""",20063407,юридична особа
ОПЗЖ,"04053, м. Київ, вул. Кудрявський узвіз, буд. 2",70,2020-03-04,21845,Банківські послуги,Інші витрати,238354,Київська міська організація Опозиційна платформа - За життя,40398712,Київ,"Оплата комісійної винагороди за обслуговування в тарифному пакеті за період 28.01.20-31.01.20 згідно 26007001094421, від 28.01.2020. Без ПДВ.",UA533390500000026007001094421,current,250.00,"Кременчуцька філія ПАТ ""Кристалбанк""",39544699,юридична особа
ОПЗЖ,"01015, м. Київ, вул. Лаврська, 16",68,2020-03-04,2,Соцдослідження,"Гонорари, в тому числі за надані консультаційні послуги",238353,Київська міська організація Опозиційна платформа - За життя,40398712,Київ,"Плата за проведення дослідження ""Соц. – політ.орієнтації жителів Києва"" згідно дог. б/н від 28.01.2020 року, без ПДВ.",UA533390500000026007001094421,current,159750.00,"Громадська організація ""Український центр економічних і політичних досліджень імені Олександра Разумкова""",20063407,юридична особа
ОПЗЖ,"01601, м.Київ, ВУЛИЦЯ БАСТІОННА, будинок 6",60,2020-03-04,3,Інші податки,Податкові платежі,238325,Центральний офіс,21709375,Україна,"Адміністративний збір за проведення державної реєстрації змін про юридичну особу ПП ""ОПОЗИЦІЙНА ПЛАТФОРМА - ЗА ЖИТТЯ"". Без ПДВ.",UA763390500000026004001085864,state,630.60,ДКСУ,37567646,юридична особа
ОПЗЖ,м. Київ,82,2020-03-04,4,"Гонорари, в тому числі за надані консультаційні послуги","Гонорари, в тому числі за надані консультаційні послуги",238318,Центральний офіс,21709375,Україна,Оплата за нотаріальні послуги зг.рах.№8 від 04.03.2020 р. Без ПДВ.,UA763390500000026004001085864,state,1000.00,Тесленко Юлія Петрівна,,фізична особа
ОПЗЖ,"04053, м.Київ, ВУЛИЦЯ КУДРЯВСЬКИЙ УЗВІЗ, будинок 2",70,2020-03-03,13221,Банківські послуги,Інші витрати,238324,Центральний офіс,21709375,Україна,Оплата комісійної винагороди за обслуговування в тарифному пакеті за період 01.02.20-29.02.20 згідно дог.№ 26004001085864 від 08.08.2019. Без ПДВ.,UA763390500000026004001085864,state,500.00,"Кременчуцька філія ПАТ ""Кристалбанк""",39544699,юридична особа
ОПЗЖ,"04053, м.Київ, ВУЛИЦЯ КУДРЯВСЬКИЙ УЗВІЗ, будинок 2",70,2020-03-03,13220,Банківські послуги,Інші витрати,238323,Центральний офіс,21709375,Україна,Оплата комісійної винагороди за обслуговування в тарифному пакеті за період 01.01.20-31.01.20 згідно дог.№26004001085864 від 08.08.2019. Без ПДВ.,UA763390500000026004001085864,state,250.00,"Кременчуцька філія ПАТ ""Кристалбанк""",39544699,юридична особа
ОПЗЖ,"04053, м.Київ, ВУЛИЦЯ КУДРЯВСЬКИЙ УЗВІЗ, будинок 2",70,2020-03-03,13219,Банківські послуги,Інші витрати,238322,Центральний офіс,21709375,Україна,Оплата комісійної винагороди за відкриття другого та кожного наступного рахунку в будь-якій валюті за 08/10/2019р зг.дог.26004001085864 від 08.08.2019. Без ПДВ.,UA763390500000026004001085864,state,100.00,"Кременчуцька філія ПАТ ""Кристалбанк""",39544699,юридична особа
ОПЗЖ,"04074, м.Київ, ВУЛИЦЯ ЛУГОВА, БУДИНОК №2 , (ЛІТЕРА А)",79,2020-03-03,2,"Оренда будинків і приміщень та експлуатаційні витрати (прибирання, страхування орендованих будинків, охорона, сигналізація, ремонт, вивіз сміття, тощо)",Оренда нерухомості,238321,Центральний офіс,21709375,Україна,Оплата за оренду приміщення зг.дог.№183 від 01.01.2020 р. та акту № 77 від 29.02.2020 р. в т. ч. ПДВ 20% 68913.00 грн.,UA763390500000026004001085864,state,413478.00,"ТОВ ""УКРАЇНСЬКИЙ ПРОМИСЛОВО-ФІНАНСОВИЙ КОНЦЕРН ""СЛАВУТИЧ""",16464546,юридична особа
ОПЗЖ,"69000, Запорізька обл., м.Запоріжжя, вул. Олександрівська, 7",61,2020-03-02,54,Військовий збір,Податкові платежі,238390,Запорізька обласна організація Опозиційна платформа - За життя,39400010,Запорізька область,"*;101;39400010;11011000; Військовий збір 1,5%, утрим. із зар.плати за 2-гу половину лютого 2020 року. Перерах.повн. Стр. 02.03.2020 р.; ; ;без ПДВ.",UA293139570000026008300696560,current,37.50,УДКСУ в Олександрівському районі м. Запоріжжя,38025440,юридична особа
ОПЗЖ,"69000, Запорізька обл., м.Запоріжжя, вул. Олександрівська, 7",63,2020-03-02,53,Податок на доходи,Податкові платежі,238389,Запорізька обласна організація Опозиційна платформа - За життя,39400010,Запорізька область,"*;101;39400010;11010100; Податок з доходу фіз.осіб, утрим. із зар.плати за 2-гу половину лютого 2020 року. Перерах.повн. Стр. 02.03.2020 р.; ; ;без ПДВ.",UA293139570000026008300696560,current,450.00,УДКСУ в Олександрівському районі м. Запоріжжя,38025440,юридична особа
ОПЗЖ,"69107, Запорізька обл., місто Запоріжжя, ПРОСПЕКТ СОБОРНИЙ, будинок 166",62,2020-03-02,52,Сплата ЄСВ,Податкові платежі,238388,Запорізька обласна організація Опозиційна платформа - За життя,39400010,Запорізька область,*;101;39968366;Нарах.ЕСВ 22% на зар.плату за 2-гу половину лютого 2020 року. Перерах. Повн. Стр. 02.03.2020 р.; ; ; без ПДВ.,UA293139570000026008300696560,current,550.00,ГУ ДПС у Запорізькій області,43143945,юридична особа
ОПЗЖ,"01001 м. Київ, вул. Госпітальна, 12-г",70,2020-03-02,7745310109,Банківські послуги,Інші витрати,238387,Запорізька обласна організація Опозиційна платформа - За життя,39400010,Запорізька область,Списання щомісячної плати за обслуговування ТП Мій бізнес за лютий 2020 року,UA293139570000026008300696560,current,199.00,"АТ ""Ощадбанк""",00032129,юридична особа
ОПЗЖ,м.Запоріжжя,84,2020-03-02,55,"Заробітна плата, премії","Заробітна плата, лікарняні, вагітності, відрядження, компенсації",238372,Запорізька обласна організація Опозиційна платформа - За життя,39400010,Запорізька область,Заробітна плата за 2-гу половину лютого 2020 року. Без ПДВ.,UA293139570000026008300696560,current,2012.50,Матвієнко Павло Дмитрович,,фізична особа
ОПЗЖ,"04070, м Київ, вулиця Андріївська, буд. 4",70,2020-03-02,TR.29622094.113443.359,Банківські послуги,Інші витрати,238332,Дніпропетровська обласна організація Опозиційна платформа - За життя,41549539,Дніпропетровська область,"Договірне списання комісії по тариф. пакету за період з 01.02.20 по 29.02.20, дог. № 272636160 від 09.07.2018 згідно тарифів ПУМБ",UA903348510000000002600948745,current,170.00,"ПАТ ""ПУМБ""",14282829,юридична особа
ОПЗЖ,"01021, м. Київ, Кловський узвіз, буд. 9/2",70,2020-03-02,226326429/,Банківські послуги,Інші витрати,238303,Центральний офіс,21709375,Україна,"Плата за РКО фіксованна плата по тарифному пакету ""Стандарт"" згідно з п.4.1 дог №26003700467179 від 12.02.2019 без ПДВ",UA603808380000026003700467179,current,150.00,"ПАТ КБ ""Правекс-банк""",14360920,юридична особа
ОПЗЖ,"04053, м.Київ, ВУЛИЦЯ БУЛЬВАРНО-КУДРЯВСЬКА, будинок 6",70,2020-02-28,279056,Банківські послуги,Інші витрати,238348,Харківська обласна організація Опозиційна платформа - За життя,33900035,Харківська область,"Оплата за переказ кошітв за ел. Банк. Док. Надіслано СДО ""PAY CIB"" зг. Дог.№31935/РКО від 21.06.2019р.",UA493225400000026003101031935,current,100.00,"АТ ""Комерційний індустріальний банк""",21580639,юридична особа
ОПЗЖ,"04053, м.Київ, ВУЛИЦЯ БУЛЬВАРНО-КУДРЯВСЬКА, будинок 6",70,2020-02-28,278068,Банківські послуги,Інші витрати,238347,Харківська обласна організація Опозиційна платформа - За життя,33900035,Харківська область,Комісія за рохрахункове обслуговування поточного рахунку за період 01.02.20-29.02.20 зг. Дог.№31935/РКО від 21.06.2019р. Без ПДВ,UA493225400000026003101031935,current,100.00,"АТ ""Комерційний індустріальний банк""",21580639,юридична особа
ОПЗЖ,"04070, м.Київ, ВУЛИЦЯ БОРИСОГЛІБСЬКА, будинок 5, ЛІТЕРА ""А""",70,2020-02-27,8810202/20,Банківські послуги,Інші витрати,238361,Луганська обласна організація Опозиційна платформа - За життя,41366346,Луганська область,Комісія за разрахункове обслуговування,UA293006470000026001011247700,current,80.00,"АБ ""Кліринговий дім""",21665382,юридична особа
ОПЗЖ,"04070, м.Київ, ВУЛИЦЯ БОРИСОГЛІБСЬКА, будинок 5, ЛІТЕРА ""А""",70,2020-02-26,8791390/20,Банківські послуги,Інші витрати,238360,Луганська обласна організація Опозиційна платформа - За життя,41366346,Луганська область,Комісія за разрахункове обслуговування,UA293006470000026001011247700,current,80.00,"АБ ""Кліринговий дім""",21665382,юридична особа
ОПЗЖ,"04070, м.Київ, ВУЛИЦЯ БОРИСОГЛІБСЬКА, будинок 5, ЛІТЕРА ""А""",70,2020-02-24,8698446/20,Банківські послуги,Інші витрати,238359,Луганська обласна організація Опозиційна платформа - За життя,41366346,Луганська область,Комісія за разрахункове обслуговування,UA293006470000026001011247700,current,20.00,"АБ ""Кліринговий дім""",21665382,юридична особа
ОПЗЖ,"04053, м.Київ, ВУЛИЦЯ БУЛЬВАРНО-КУДРЯВСЬКА, будинок 6",70,2020-02-24,195163,Банківські послуги,Інші витрати,238346,Харківська обласна організація Опозиційна платформа - За життя,33900035,Харківська область,Комісія за переказ коштів за платіжним друченням по системі КБ заперіод 24.02.20-24.02.20 зг. Дог. №31935/РКО від 21.06.2019р. Без ПДВ,UA493225400000026003101031935,current,25.00,"АТ ""Комерційний індустріальний банк""",21580639,юридична особа
ОПЗЖ,"04053, м.Київ, ВУЛИЦЯ БУЛЬВАРНО-КУДРЯВСЬКА, будинок 6",70,2020-02-24,195212,Банківські послуги,Інші витрати,238345,Харківська обласна організація Опозиційна платформа - За життя,33900035,Харківська область,Комісія за переказ коштів за платіжним друченням по системі КБ заперіод 24.02.20-24.02.20 зг. Дог. №31935/РКО від 21.06.2019р. Без ПДВ,UA493225400000026003101031935,current,20.00,"АТ ""Комерційний індустріальний банк""",21580639,юридична особа
ОПЗЖ,м. Харків,79,2020-02-24,18,"Оренда будинків і приміщень та експлуатаційні витрати (прибирання, страхування орендованих будинків, охорона, сигналізація, ремонт, вивіз сміття, тощо)",Оренда нерухомості,238338,Харківська обласна організація Опозиційна платформа - За життя,33900035,Харківська область,Сплата за суборенду приміщення згідно договору бн від 01.01.2020р. за березень 2020р. Без ПДВ.,UA493225400000026003101031935,current,25000.00,Дорожко Ірина Миколаївна,,фізична особа
ОПЗЖ,м. Харків,79,2020-02-24,19,"Оренда будинків і приміщень та експлуатаційні витрати (прибирання, страхування орендованих будинків, охорона, сигналізація, ремонт, вивіз сміття, тощо)",Оренда нерухомості,238337,Харківська обласна організація Опозиційна платформа - За життя,33900035,Харківська область,Сплата за комунальні послуги згідно договору бн від 01.01.2020р. Та Акту №2 від 20.02.2020 р. за січень 2020р. Без ПДВ,UA493225400000026003101031935,current,9000.16,Дорожко Ірина Миколаївна,,фізична особа
ОПЗЖ,"04074, м.Київ, ВУЛИЦЯ ЛУГОВА, БУДИНОК №2 , (ЛІТЕРА А)",79,2020-02-20,1,"Оренда будинків і приміщень та експлуатаційні витрати (прибирання, страхування орендованих будинків, охорона, сигналізація, ремонт, вивіз сміття, тощо)",Оренда нерухомості,238320,Центральний офіс,21709375,Україна,Оплата за оренду приміщення згідно договору № 183 від 01.01.2020 р. та акту №37 від 31.01.2020р. в т. ч. ПДВ 20% 52156.52 грн.,UA763390500000026004001085864,state,312939.12,"ТОВ ""УКРАЇНСЬКИЙ ПРОМИСЛОВО-ФІНАНСОВИЙ КОНЦЕРН ""СЛАВУТИЧ""",16464546,юридична особа
ОПЗЖ,"04070, м.Київ, ВУЛИЦЯ БОРИСОГЛІБСЬКА, будинок 5, ЛІТЕРА ""А""",70,2020-02-19,8192297/20,Банківські послуги,Інші витрати,238358,Луганська обласна організація Опозиційна платформа - За життя,41366346,Луганська область,Комісія за відкриття поточного рахунку,UA293006470000026001011247700,current,100.00,"АБ ""Кліринговий дім""",21665382,юридична особа
ОПЗЖ,"04070, м.Київ, ВУЛИЦЯ БОРИСОГЛІБСЬКА, будинок 5, ЛІТЕРА ""А""",70,2020-02-19,8192157/20,Банківські послуги,Інші витрати,238357,Луганська обласна організація Опозиційна платформа - За життя,41366346,Луганська область,Комісія за надання довідки про відкриття рахунку,UA293006470000026001011247700,current,100.00,"АБ ""Кліринговий дім""",21665382,юридична особа
ОПЗЖ,"93400, Луганська обл., місто Сєвєродонецьк",79,2020-02-18,1,"Оренда будинків і приміщень та експлуатаційні витрати (прибирання, страхування орендованих будинків, охорона, сигналізація, ремонт, вивіз сміття, тощо)",Оренда нерухомості,238356,Луганська обласна організація Опозиційна платформа - За життя,41366346,Луганська область,Плата за оренду приміщення згідно Договору № 1/20 від 01.01.2020 р. та рах.№ 73 від 31.01.2020 р. Без ПДВ.,UA293006470000026001011247700,current,3600.00,Горбульова Людмила Миколаївна,,фізична особа
ОПЗЖ,"69107, Запорізька обл., місто Запоріжжя, ПРОСПЕКТ СОБОРНИЙ, будинок 166",62,2020-02-17,50,Сплата ЄСВ,Податкові платежі,238386,Запорізька обласна організація Опозиційна платформа - За життя,39400010,Запорізька область,*;101;39968366;Нарах.ЕСВ 22% на зар.плату за 1-шу половину лютого 2020 року. Перерах. Повн. Стр. 17.02.2020 р.; ; ; без ПДВ.,UA293139570000026008300696560,current,550.00,ГУ ДПС у Запорізькій області,43143945,юридична особа
ОПЗЖ,"69000, Запорізька обл., м.Запоріжжя, вул. Олександрівська, 7",63,2020-02-17,49,Податок на доходи,Податкові платежі,238385,Запорізька обласна організація Опозиційна платформа - За життя,39400010,Запорізька область,"*;101;39400010;11010100; Податок з доходу фіз.осіб, утрим. із зар.плати за 1-шу половину лютого 2020 року. Перерах.повн. Стр. 17.02.2020 р.; ; ;без ПДВ.",UA293139570000026008300696560,current,450.00,УДКСУ в Олександрівському районі м. Запоріжжя,38025440,юридична особа
ОПЗЖ,"69000, Запорізька обл., м.Запоріжжя, вул. Олександрівська, 7",61,2020-02-17,48,Військовий збір,Податкові платежі,238384,Запорізька обласна організація Опозиційна платформа - За життя,39400010,Запорізька область,"*;101;39400010;11011000; Військовий збір 1,5%, утрим. із зар.плати за 1-шу половину лютого 2020 року. Перерах.повн. Стр. 17.02.2020 р.; ; ;без ПДВ.",UA293139570000026008300696560,current,37.50,УДКСУ в Олександрівському районі м. Запоріжжя,38025440,юридична особа
ОПЗЖ,м.Запоріжжя,84,2020-02-17,51,"Заробітна плата, премії","Заробітна плата, лікарняні, вагітності, відрядження, компенсації",238371,Запорізька обласна організація Опозиційна платформа - За життя,39400010,Запорізька область,Заробітна плата за 1-шу половину лютого 2020 року. Без ПДВ.,UA293139570000026008300696560,current,2012.50,Матвієнко Павло Дмитрович,,фізична особа
ОПЗЖ,"01601 М. Київ Бул-р Т. Шевченко, буд.18",76,2020-02-12,183,Послуги зв’язку,Послуги зв’язку,238302,Центральний офіс,21709375,Україна,"За послуги міжміські та міжнародні розмови за січень 2020 р згідно О/Р 8200004425510701 У т.р. ПДВ 62,52 грн.",UA603808380000026003700467179,current,375.14,"ПАТ ""Укртелеком""",21560766,юридична особа
ОПЗЖ,"69095, Запорізька обл., м.Запоріжжя, пр.Соборний, 111",79,2020-02-11,47,"Оренда будинків і приміщень та експлуатаційні витрати (прибирання, страхування орендованих будинків, охорона, сигналізація, ремонт, вивіз сміття, тощо)",Оренда нерухомості,238383,Запорізька обласна організація Опозиційна платформа - За життя,39400010,Запорізька область,"Оплата за оренду нежитлового приміщення у січні 2020 року згідно Договору № 26 від 01.06.2019 року. В т.ч ПДВ 574,17 грн.",UA293139570000026008300696560,current,3445.00,"Спільне українсько-німецьке підприємство ""Саксонія ГМБХ""",19364710,юридична особа
ОПЗЖ,"65089, Одеська обл., місто Одеса, ВУЛИЦЯ АКАДЕМІКА ВІЛЬЯМСА, будинок 59-Е",79,2020-02-05,1,"Оренда будинків і приміщень та експлуатаційні витрати (прибирання, страхування орендованих будинків, охорона, сигналізація, ремонт, вивіз сміття, тощо)",Оренда нерухомості,238364,Одеська обласна організація Опозиційна платформа - За життя,34055433,Одеська область,Плата за оренду офісного приміщення за листопад-грудень 2019 року та січень 2020 р. згідно рах. №1 від 31.01.2020 року.,UA063071230000026001010511596,current,7500.00,"ТОВ ""ЛІДЕР ШИП МЕНЕДЖМЕНТ""",39596883,юридична особа
ОПЗЖ,"01001 м. Київ, вул. Госпітальна, 12-г",70,2020-02-03,808665609,Банківські послуги,Інші витрати,238382,Запорізька обласна організація Опозиційна платформа - За життя,39400010,Запорізька область,Списання щомісячної плати за обслуговування ТП Мій бізнес за січень 2020 року,UA293139570000026008300696560,current,199.00,"АТ ""Ощадбанк""",00032129,юридична особа
ОПЗЖ,"69107, Запорізька обл., місто Запоріжжя, ПРОСПЕКТ СОБОРНИЙ, будинок 166",62,2020-02-03,45,Сплата ЄСВ,Податкові платежі,238381,Запорізька обласна організація Опозиційна платформа - За життя,39400010,Запорізька область,*;101;39968366;Нарах.ЕСВ 22% на зар.плату за 2-гу половину січня 2020 року. Перерах. Повн. Стр. 03.02.2020 р.; ; ; без ПДВ.,UA293139570000026008300696560,current,628.57,ГУ ДПС у Запорізькій області,43143945,юридична особа
ОПЗЖ,"69000, Запорізька обл., м.Запоріжжя, вул. Олександрівська, 7",63,2020-02-03,44,Податок на доходи,Податкові платежі,238380,Запорізька обласна організація Опозиційна платформа - За життя,39400010,Запорізька область,"*;101;39400010;11010100; Податок з доходу фіз.осіб, утрим. із зар.плати за 2-гу половину січня 2020 року. Перерах.повн. Стр. 03.02.2020 р.; ; ;без ПДВ.",UA293139570000026008300696560,current,514.29,УДКСУ в Олександрівському районі м. Запоріжжя,38025440,юридична особа
ОПЗЖ,"69000, Запорізька обл., м.Запоріжжя, вул. Олександрівська, 7",61,2020-02-03,43,Військовий збір,Податкові платежі,238379,Запорізька обласна організація Опозиційна платформа - За життя,39400010,Запорізька область,"*;101;39400010;11011000; Військовий збір 1,5%, утрим. із зар.плати за 2-гу половину січня 2020 року. Перерах.повн. стр. 03.02.2020 р.; ; ;без ПДВ.",UA293139570000026008300696560,current,42.86,УДКСУ в Олександрівському районі м. Запоріжжя,38025440,юридична особа
ОПЗЖ,м.Запоріжжя,84,2020-02-03,46,"Заробітна плата, премії","Заробітна плата, лікарняні, вагітності, відрядження, компенсації",238370,Запорізька обласна організація Опозиційна платформа - За життя,39400010,Запорізька область,Заробітна плата за 2-гу половину січня 2020 року. Без ПДВ.,UA293139570000026008300696560,current,2299.99,Матвієнко Павло Дмитрович,,фізична особа
ОПЗЖ,"01021, м. Київ, Кловський узвіз, буд. 9/2",70,2020-02-03,225402407/,Банківські послуги,Інші витрати,238301,Центральний офіс,21709375,Україна,"Плата за РКО фіксованна плата по тарифному пакету ""Стандарт"" згідно з п.4.1 дог №26003700467179 від 12.02.2019 без ПДВ",UA603808380000026003700467179,current,150.00,"ПАТ КБ ""Правекс-банк""",14360920,юридична особа
ОПЗЖ,"04053, м.Київ, ВУЛИЦЯ БУЛЬВАРНО-КУДРЯВСЬКА, будинок 6",70,2020-01-31,283375,Банківські послуги,Інші витрати,238344,Харківська обласна організація Опозиційна платформа - За життя,33900035,Харківська область,"Оплата за переказ кошітв за ел. Банк. Док. Надіслано СДО ""PAY CIB"" зг. Дог.№31935/РКО від 21.06.2019р.",UA493225400000026003101031935,current,100.00,"АТ ""Комерційний індустріальний банк""",21580639,юридична особа
ОПЗЖ,"04053, м.Київ, ВУЛИЦЯ БУЛЬВАРНО-КУДРЯВСЬКА, будинок 6",70,2020-01-31,282478,Банківські послуги,Інші витрати,238343,Харківська обласна організація Опозиційна платформа - За життя,33900035,Харківська область,Комісія за рохрахункове обслуговування поточного рахунку за період 01.01.20-31.01.20 зг. Дог.№31935/РКО від 21.06.2019р. Без ПДВ,UA493225400000026003101031935,current,100.00,"АТ ""Комерційний індустріальний банк""",21580639,юридична особа
ОПЗЖ,"04070, м Київ, вулиця Андріївська, буд. 4",70,2020-01-31,TR.29622094.627412.359,Банківські послуги,Інші витрати,238331,Дніпропетровська обласна організація Опозиційна платформа - За життя,41549539,Дніпропетровська область,"Договірне списання комісіїпо тариф. пакету за період з 01.01.2020 по 31.01.2020, дог. № 272636160 від 09.07.2018 згідно тарифів ПУМБ",UA903348510000000002600948745,current,170.00,"ПАТ ""ПУМБ""",14282829,юридична особа
ОПЗЖ,"03115, м. Київ, вул. Генерала Вітрука, буд. 8-А",61,2020-01-31,175,Військовий збір,Податкові платежі,238300,Центральний офіс,21709375,Україна,* ; 11010100 ; 21709375 ; військовий збір із зарплати за січень 2020 р Без ПДВ.,UA603808380000026003700467179,current,229.80,УДКСУ у Святошинському районі ГУ ДКСУ у м. Києві,37962074,юридична особа
ОПЗЖ,"03115, м. Київ, вул. Генерала Вітрука, буд. 8-А",63,2020-01-31,173,Податок на доходи,Податкові платежі,238299,Центральний офіс,21709375,Україна,* ; 11010100 ; 21709375 ; ; ; Податок на доходи фізичних осіб із зарплати за січень 2020 р Без ПДВ.,UA603808380000026003700467179,current,2757.52,УДКСУ у Святошинському районі ГУ ДКСУ у м. Києві,37962074,юридична особа
ОПЗЖ,"04655, м.Київ, ВУЛИЦЯ ШОЛУДЕНКА, будинок 33/19",62,2020-01-31,174,Сплата ЄСВ,Податкові платежі,238298,Центральний офіс,21709375,Україна,* ; 101 ; 21709375 ; ; ; 22% ЄСВ на зарплати за січеь 2020 р Без ПДВ.,UA603808380000026003700467179,current,3370.29,ГУ ДФС у м. Києві,43141267,юридична особа
ОПЗЖ,"01133 М. Київ Вул. Мечнікова, буд.14/1",82,2020-01-31,179,"Гонорари, в тому числі за надані консультаційні послуги","Гонорари, в тому числі за надані консультаційні послуги",238297,Центральний офіс,21709375,Україна,Абонентська плата за січень 2020 р. згідно з рахунком №1 від 02.01.2020р. Без ПДВ.,UA603808380000026003700467179,current,2000.00,"ТОВ ""Адвокатська компанія ""Золота середина""",37884206,юридична особа
ОПЗЖ,"03150, м. Київ, Предславинська, 28 Оф. 1003",78,2020-01-31,181,Оренда обладнання та технічних засобів,Оренда обладнання та технічних засобів,238296,Центральний офіс,21709375,Україна,"Абонентська плата за оренду сервера за січень 2020р згідно рахунку № 206 від 02.01.20р. В т.ч. ПДВ – 67,33 грн.",UA603808380000026003700467179,current,404.00,"ТОВ ""Дрім лайн холдінг""",34981026,юридична особа
ОПЗЖ,"03150, м. Київ, Предславинська, 28 Оф. 1003",76,2020-01-31,180,Послуги зв’язку,Послуги зв’язку,238295,Центральний офіс,21709375,Україна,"Оплата за необмежений доступ до мережі Інтернет за січень 2020 р згідно рахунку №205 від 02.01.20 р. В т.ч. ПДВ – 16,67 грн..",UA603808380000026003700467179,current,100.00,"ТОВ ""Дрім лайн холдінг""",34981026,юридична особа
ОПЗЖ,01133 м.Київ вул.Мечникова 14/1,79,2020-01-31,182,"Оренда будинків і приміщень та експлуатаційні витрати (прибирання, страхування орендованих будинків, охорона, сигналізація, ремонт, вивіз сміття, тощо)",Оренда нерухомості,238294,Центральний офіс,21709375,Україна,"Оренда приміщення за січень 2020 р згідно рахунку № 1187 від 23.12.19г в т.ч. ПДВ – 133,33 грн.",UA603808380000026003700467179,current,800.00,"Асоціація ""Українсько-Ізраїльська торгова палата""",23153841,юридична особа
ОПЗЖ,м. Київ,84,2020-01-31,177,"Заробітна плата, премії","Заробітна плата, лікарняні, вагітності, відрядження, компенсації",238279,Центральний офіс,21709375,Україна,Поповнення карткового Рах № 5168742726929528 (зарплата січень 2020р) Без ПДВ.,UA603808380000026003700467179,current,4025.00,Смілянська Галина Федорівна,,фізична особа
ОПЗЖ,м. Курахове,84,2020-01-31,176,"Заробітна плата, премії","Заробітна плата, лікарняні, вагітності, відрядження, компенсації",238278,Центральний офіс,21709375,Україна,Поповнення картковогоРах № 4149439007900909 (зарплата за січень 2020 р) Без ПДВ.,UA603808380000026003700467179,current,4153.59,Кухарський Олександр Олександрович,,фізична особа
ОПЗЖ,м. Київ,84,2020-01-31,178,"Заробітна плата, премії","Заробітна плата, лікарняні, вагітності, відрядження, компенсації",238277,Центральний офіс,21709375,Україна,Поповнення картковогоРах № 5168 7422 2059 1949 (зарплата за січень 2020р) Без ПДВ.,UA603808380000026003700467179,current,4153.59,Шило Розалі Георгіївна,,фізична особа
ОПЗЖ,"04070, м Київ, вулиця Андріївська, буд. 4",70,2020-01-30,TR.29605239.35673.16948,Банківські послуги,Інші витрати,238330,Дніпропетровська обласна організація Опозиційна платформа - За життя,41549539,Дніпропетровська область,Договірне списання комісії за оформлення дубліката виписки по рахунку згідно п.1.12.1 тарифів ПУМБ по дог. № 272636160 від 09.07.2018,UA903348510000000002600948745,current,50.00,"ПАТ ""ПУМБ""",14282829,юридична особа
ОПЗЖ,"01015, м. Київ, вул. Лаврська, 16",68,2020-01-29,1,Соцдослідження,"Гонорари, в тому числі за надані консультаційні послуги",238352,Київська міська організація Опозиційна платформа - За життя,40398712,Київ,"Плата за проведення дослідження ""Соц. – політ.орієнтації жителів Києва"" згідно дог. б/н від 28.01.2020 року, без ПДВ.",UA533390500000026007001094421,current,360000.00,"Громадська організація ""Український центр економічних і політичних досліджень імені Олександра Разумкова""",20063407,юридична особа
ОПЗЖ,4120 м.Київ вул.Дегтярівська 21-Г,51,2020-01-27,171,Оплата ефірного часу на ТБ,Телереклама,238293,Центральний офіс,21709375,Україна,"Послуги з забеспечення розміщення рекламного відеоматеріалу в ефірі Телеканалу""112-Україна"" згідно Додатку №2 та рах №17 від 03.01.20р. У т.ч.ПДВ-6080,00 грн.",UA603808380000026003700467179,current,36480.00,"ТОВ ""Інформаційне агентство ""112-Україна""",40780718,юридична особа
ОПЗЖ,03056 м.Київ вул. Польова буд.21,51,2020-01-27,170,Оплата ефірного часу на ТБ,Телереклама,238292,Центральний офіс,21709375,Україна,"Розміщення рекламного ролика на телеканалі ""Newsone""згідно рахунку №1 від 06.01.2020р. В т.ч.ПДВ-6077,57 грн.",UA603808380000026003700467179,current,36465.41,"ТОВ ""Новини 24 години""",33786517,юридична особа
ОПЗЖ,79000 м.Львів вул. Вороного буд.3,51,2020-01-27,172,Оплата ефірного часу на ТБ,Телереклама,238291,Центральний офіс,21709375,Україна,"Послуги з розміщення в Ефірі Телеканалу Рекламних відеоматеріалів згідно Дод№2 від 03.01.2020р. та рах №1 від 03.01.2020р. У т.ч.ПДВ-3870,90 грн.",UA603808380000026003700467179,current,23225.40,"ТОВ ""Телерадіокомпанія ""Нові телекомунікації""",34047881,юридична особа
ОПЗЖ,"04070, м Київ, вулиця Андріївська, буд. 4",70,2020-01-24,TR.29605239.44458.16948,Банківські послуги,Інші витрати,238329,Дніпропетровська обласна організація Опозиційна платформа - За життя,41549539,Дніпропетровська область,Договірне списання комісії за оформлення та видачу дубліката документів згідно п.1.53 тарифів ПУМБ по дог. № 272636160 від 09.07.2018,UA903348510000000002600948745,current,60.00,"ПАТ ""ПУМБ""",14282829,юридична особа
ОПЗЖ,"04053, м.Київ, ВУЛИЦЯ БУЛЬВАРНО-КУДРЯВСЬКА, будинок 6",70,2020-01-21,149101,Банківські послуги,Інші витрати,238342,Харківська обласна організація Опозиційна платформа - За життя,33900035,Харківська область,Комісія за переказ коштів за платіжним друченням по системі КБ заперіод 21.01.20-21.01.20 зг. Дог. №31935/РКО від 21.06.2019р. Без ПДВ,UA493225400000026003101031935,current,3.00,"АТ ""Комерційний індустріальний банк""",21580639,юридична особа
ОПЗЖ,"04053, м.Київ, ВУЛИЦЯ БУЛЬВАРНО-КУДРЯВСЬКА, будинок 6",70,2020-01-21,149030,Банківські послуги,Інші витрати,238341,Харківська обласна організація Опозиційна платформа - За життя,33900035,Харківська область,Комісія за переказ коштів за платіжним друченням по системі КБ заперіод 21.01.20-21.01.20 зг. Дог. №31935/РКО від 21.06.2019р. Без ПДВ,UA493225400000026003101031935,current,3.00,"АТ ""Комерційний індустріальний банк""",21580639,юридична особа
ОПЗЖ,"04053, м.Київ, ВУЛИЦЯ БУЛЬВАРНО-КУДРЯВСЬКА, будинок 6",70,2020-01-21,149012,Банківські послуги,Інші витрати,238340,Харківська обласна організація Опозиційна платформа - За життя,33900035,Харківська область,Комісія за переказ коштів за платіжним друченням по системі КБ заперіод 21.01.20-21.01.20 зг. Дог. №31935/РКО від 21.06.2019р. Без ПДВ,UA493225400000026003101031935,current,3.00,"АТ ""Комерційний індустріальний банк""",21580639,юридична особа
ОПЗЖ,м. Харків,79,2020-01-21,16,"Оренда будинків і приміщень та експлуатаційні витрати (прибирання, страхування орендованих будинків, охорона, сигналізація, ремонт, вивіз сміття, тощо)",Оренда нерухомості,238336,Харківська обласна організація Опозиційна платформа - За життя,33900035,Харківська область,Сплата за суборенду приміщення згідно договору бн від 01.01.2020р. за лютий 2020р. Без ПДВ.,UA493225400000026003101031935,current,25000.00,Дорожко Ірина Миколаївна,,фізична особа
ОПЗЖ,м. Харків,79,2020-01-21,15,"Оренда будинків і приміщень та експлуатаційні витрати (прибирання, страхування орендованих будинків, охорона, сигналізація, ремонт, вивіз сміття, тощо)",Оренда нерухомості,238335,Харківська обласна організація Опозиційна платформа - За життя,33900035,Харківська область,Сплата за суборенду приміщення згідно договору бн від 01.01.2020р. за січень 2020р. Без ПДВ.,UA493225400000026003101031935,current,25000.00,Дорожко Ірина Миколаївна,,фізична особа
ОПЗЖ,м. Харків,79,2020-01-21,17,"Оренда будинків і приміщень та експлуатаційні витрати (прибирання, страхування орендованих будинків, охорона, сигналізація, ремонт, вивіз сміття, тощо)",Оренда нерухомості,238334,Харківська обласна організація Опозиційна платформа - За життя,33900035,Харківська область,Сплата за комунальні послуги згідно договору бн від 05.07.2019р. та акту № 12 від 02.01.2020р. за грудень 2019р. Без ПДВ,UA493225400000026003101031935,current,13819.20,Дорожко Ірина Миколаївна,,фізична особа
ОПЗЖ,"01001, м.Київ, ВУЛИЦЯ ГРУШЕВСЬКОГО, будинок 1Д",70,2020-01-20,LHI5300092,Банківські послуги,Інші витрати,238366,Сумська обласна організація Опозиційна платформа - За життя,40899474,Сумська область,Погашення заборгованості за РКО,UA453375460000026006055026947,current,83.00,"ПАТ КБ ""Приватбанк""",14360570,юридична особа
ОПЗЖ,"01601 М. Київ Бул-р Т. Шевченко, буд.18",76,2020-01-17,169,Послуги зв’язку,Послуги зв’язку,238290,Центральний офіс,21709375,Україна,"За послуги міжміські та міжнародні розмови за грудень 2019 р згідно О/Р 8200004425510701 У т.р. ПДВ 54,86 грн.",UA603808380000026003700467179,current,329.16,"ПАТ ""Укртелеком""",21560766,юридична особа
ОПЗЖ,"69000, Запорізька обл., м.Запоріжжя, вул. Олександрівська, 7",61,2020-01-16,41,Військовий збір,Податкові платежі,238378,Запорізька обласна організація Опозиційна платформа - За життя,39400010,Запорізька область,"*;101;39400010;11011000; Військовий збір 1,5%, утрим. із зар.плати за 1-шу половину січня 2020 року. Перерах.повн. Стр. 16.01.2020 р.; ; ;без ПДВ.",UA293139570000026008300696560,current,32.14,УДКСУ в Олександрівському районі м. Запоріжжя,38025440,юридична особа
ОПЗЖ,"69000, Запорізька обл., м.Запоріжжя, вул. Олександрівська, 7",63,2020-01-16,40,Податок на доходи,Податкові платежі,238377,Запорізька обласна організація Опозиційна платформа - За життя,39400010,Запорізька область,"*;101;39400010;11010100; Податок з доходу фіз.осіб, утрим. із зар.плати за 1-шу половину січня 2020 року. Перерах.повн. Стр. 16.01.2020 р.; ; ;без ПДВ.",UA293139570000026008300696560,current,385.71,УДКСУ в Олександрівському районі м. Запоріжжя,38025440,юридична особа
ОПЗЖ,"69107, Запорізька обл., місто Запоріжжя, ПРОСПЕКТ СОБОРНИЙ, будинок 166",62,2020-01-16,39,Сплата ЄСВ,Податкові платежі,238376,Запорізька обласна організація Опозиційна платформа - За життя,39400010,Запорізька область,*;101;39968366;Нарах.ЕСВ 22% на зар.плату за 1-шу половину січня 2020 року. Перерах. Повн. Стр. 16.01.2020 р.; ; ; без ПДВ.,UA293139570000026008300696560,current,471.43,ГУ ДПС у Запорізькій області,43143945,юридична особа
ОПЗЖ,м.Запоріжжя,84,2020-01-16,42,"Заробітна плата, премії","Заробітна плата, лікарняні, вагітності, відрядження, компенсації",238369,Запорізька обласна організація Опозиційна платформа - За життя,39400010,Запорізька область,Заробітна плата за 1-шу половину січня 2020 року. Без ПДВ.,UA293139570000026008300696560,current,1725.01,Матвієнко Павло Дмитрович,,фізична особа
ОПЗЖ,"04070, м Київ, вулиця Андріївська, буд. 4",70,2020-01-14,TR.29605239.62738.16948,Банківські послуги,Інші витрати,238328,Дніпропетровська обласна організація Опозиційна платформа - За життя,41549539,Дніпропетровська область,Договірне списання комісії за надання довідки інформ.характеру згідно п.1.17.1 тарифів ПУМБ по дог. № 272636160 від 09.07.2018,UA903348510000000002600948745,current,150.00,"ПАТ ""ПУМБ""",14282829,юридична особа
ОПЗЖ,79000 м.Львів вул. Вороного буд.3,51,2020-01-09,164,Оплата ефірного часу на ТБ,Телереклама,238289,Центральний офіс,21709375,Україна,"Послуги з розміщення в Ефірі Телеканалу рекламних відеоматеріалів згідно рахунку №80 від 27.12.19р. У т.ч.ПДВ-30940,00 грн.",UA603808380000026003700467179,current,185640.00,"ТОВ ""Телерадіокомпанія ""Нові телекомунікації""",34047881,юридична особа
ОПЗЖ,"01001 м. Київ, вул. Госпітальна, 12-г",70,2020-01-08,6964814009,Банківські послуги,Інші витрати,238375,Запорізька обласна організація Опозиційна платформа - За життя,39400010,Запорізька область,"Сплата комісії згідно тарифу банку за надання двох довідок, без ПДВ",UA293139570000026008300696560,current,300.00,"АТ ""Ощадбанк""",00032129,юридична особа
ОПЗЖ,04119 м.Київ вул.Дегтярівська 21-Г,51,2020-01-08,163,Оплата ефірного часу на ТБ,Телереклама,238288,Центральний офіс,21709375,Україна,"Послуги з забеспечення розміщення рекламного відеоматеріалу в ефірі Телеканалу""112-Україна"" згідно Додатку №1 та рах №16 від 27.12.19р. У т.ч.ПДВ-51566,67 грн.",UA603808380000026003700467179,current,309400.00,"ТОВ ""Інформаційне агентство ""112-Україна""",40780718,юридична особа
ОПЗЖ,03056 м.Київ вул. Польова буд.21,51,2020-01-08,165,Оплата ефірного часу на ТБ,Телереклама,238287,Центральний офіс,21709375,Україна,"Розміщення рекламного ролика на телеканалі ""Newsone""згідно рахунку №274 від 27.12.2019р. В т.ч.ПДВ-51546,04 грн.",UA603808380000026003700467179,current,309276.24,"ТОВ ""Новини 24 години""",33786517,юридична особа
ОПЗЖ,"01001 м. Київ, вул. Госпітальна, 12-г",70,2020-01-03,4853231709,Банківські послуги,Інші витрати,238374,Запорізька обласна організація Опозиційна платформа - За життя,39400010,Запорізька область,Списання щомісячної плати за обслуговування ТП Мій бізнес за грудень 2019 року,UA293139570000026008300696560,current,199.00,"АТ ""Ощадбанк""",00032129,юридична особа
ОПЗЖ,"01001, м.Київ, ВУЛИЦЯ ГРУШЕВСЬКОГО, будинок 1Д",70,2020-01-03,AS9CSMSPRP,Банківські послуги,Інші витрати,238365,Сумська обласна організація Опозиційна платформа - За життя,40899474,Сумська область,Комісія за обслуговування рахунку за грудень 2019,UA453375460000026006055026947,current,17.00,"ПАТ КБ ""Приватбанк""",14360570,юридична особа
ОПЗЖ,"01021, м. Київ, Кловський узвіз, буд. 9/2",70,2020-01-03,224477512/,Банківські послуги,Інші витрати,238286,Центральний офіс,21709375,Україна,"Плата за РКО фіксованна плата по тарифному пакету ""Стандарт"" згідно з п.4.1 дог №26003700467179 від 12.02.2019 без ПДВ",UA603808380000026003700467179,current,150.00,"ПАТ КБ ""Правекс-банк""",14360920,юридична особа
